bitfinex/quotes_SOLUSD_20251207
["timestamp","ask_amount","ask_price","bid_price","bid_amount"]
[1765134666669,0.08,135.46,135.45,3.6070041]
[1765134667855,0.08,135.46,135.45,11.63980218]
[1765134668376,0.08,135.47,135.45,11.63980218]
[1765134668583,0.08,135.48,135.46,4.2570041]
[1765134668890,0.08,135.48,135.47,3.6070041]
[1765134669080,0.08,135.49,135.47,3.6070041]
[1765134669879,0.08,135.49,135.48,3.6070041]
[1765134670092,0.08,135.5,135.48,3.6070041]
[1765134670300,0.08,135.5,135.49,3.6070041]
[1765134670472,0.08,135.5,135.48,3.6070041]
[1765134670892,0.08,135.49,135.47,10.98847318]
[1765134671558,0.08,135.5,135.48,4.2570041]
[1765134671759,0.08,135.5,135.48,3.6070041]
[1765134673589,0.08,135.5,135.47,10.98847318]
[1765134673590,0.08,135.49,135.47,10.98847318]
[1765134674292,0.08,135.49,135.47,11.63847318]
[1765134674963,0.08,135.5,135.48,3.6070041]
[1765134678783,0.08,135.49,135.48,3.6070041]
[1765134681892,0.08,135.49,135.47,11.63847318]
[1765134683582,0.67,135.48,135.47,3.6070041]
[1765134683796,0.08,135.47,135.44,4.2670041]
[1765134684001,0.08,135.45,135.43,11.6507227]
[1765134684612,0.08,135.45,135.43,3.6070041]
[1765134684908,0.08,135.44,135.41,10.99157433]
[1765134685206,0.08,135.43,135.41,10.99157433]
[1765134685897,0.75,135.43,135.4,4.2670041]
[1765134686107,0.08,135.42,135.4,4.2670041]
[1765134686690,0.08,135.42,135.4,11.65235116]
[1765134687297,0.08,135.42,135.41,3.6070041]
[1765134687873,0.08,135.41,135.4,10.99252847]
[1765134688178,0.75,135.43,135.4,10.99252847]
[1765134688496,0.08,135.41,135.4,11.65252847]
[1765134689303,0.08,135.43,135.41,7.38497895]
[1765134689479,0.08,135.43,135.41,11.65198305]
[1765134689688,0.08,135.43,135.41,10.99198305]
[1765134691012,0.08,135.43,135.41,3.6070041]
[1765134691194,0.08,135.41,135.4,11.65241207]
[1765134691392,0.75,135.43,135.4,11.65241207]
[1765134691592,0.08,135.42,135.4,11.65241207]
[1765134694508,0.75,135.43,135.4,11.65241207]
[1765134694812,0.75,135.43,135.41,10.99191841]
[1765134695114,0.08,135.41,135.4,11.65242657]
[1765134695898,0.08,135.42,135.4,11.65242657]
[1765134696712,0.08,135.41,135.4,11.65242657]
[1765134696908,0.08,135.41,135.4,10.99242657]
[1765134697113,0.75,135.41,135.37,27.30257227]
[1765134697407,0.08,135.38,135.36,4.3670041]
[1765134697983,0.08,135.39,135.36,11.75436415]
[1765134698190,0.08,135.38,135.36,11.75436415]
[1765134698509,0.08,135.37,135.36,0.1]
[1765134698880,0.75,135.37,135.36,0.1]
[1765134702711,0.08,135.37,135.36,0.1]
[1765134703020,0.08,135.38,135.36,4.3670041]
[1765134703395,0.08,135.37,135.36,0.76]
[1765134703723,0.08,135.38,135.36,4.3670041]
[1765134704495,8.05573216,135.4,135.36,0.1]
[1765134704496,0.08,135.37,135.36,0.1]
[1765134704924,0.08,135.38,135.36,4.3670041]
[1765134705125,0.08,135.39,135.37,3.6070041]
[1765134705321,0.08,135.39,135.38,3.6070041]
[1765134705627,0.08,135.4,135.38,4.2670041]
[1765134706004,0.08,135.39,135.38,4.2670041]
[1765134706308,0.08,135.4,135.38,4.2670041]
[1765134706620,0.08,135.39,135.38,4.2670041]
[1765134706813,0.08,135.39,135.38,3.6070041]
[1765134707016,0.08,135.39,135.36,7.48754408]
[1765134707242,0.75,135.39,135.36,11.75454818]
[1765134707445,0.08,135.37,135.36,11.75454818]
[1765134707624,0.08,135.37,135.36,11.09454818]
[1765134708254,0.08,135.37,135.36,11.75454818]
[1765134710146,0.08,135.38,135.36,11.75454818]
[1765134710348,0.08,135.37,135.36,11.09454818]
[1765134710648,0.08,135.37,135.36,11.75454818]
[1765134711554,0.08,135.37,135.36,0.1]
[1765134712741,7.46716111,135.37,135.36,0.1]
[1765134713537,8.13716111,135.37,135.36,0.1]
[1765134717161,28.05302921,135.37,135.36,0.1]
[1765134723967,23.77602511,135.37,135.36,0.1]
[1765134724162,0.08,135.37,135.36,0.77]
[1765134724863,0.08,135.37,135.36,4.3770041]
[1765134725057,0.08,135.37,135.36,0.77]
[1765134731564,0.08,135.37,135.36,3.08181843]
[1765134731771,0.08,135.37,135.36,0.77]
[1765134733485,0.08,135.39,135.36,0.77]
[1765134733674,0.08,135.37,135.36,0.77]
[1765134736085,0.08,135.41,135.36,3.08181843]
[1765134736242,0.08,135.4,135.38,2.31181843]
[1765134736447,0.08,135.37,135.36,0.77]
[1765134736672,0.08,135.37,135.36,0.1]
[1765134737188,0.08,135.39,135.36,0.77]
[1765134737372,0.08,135.37,135.36,0.77]
[1765134740184,0.08,135.37,135.36,3.08181843]
[1765134740379,0.08,135.37,135.36,0.77]
[1765134744260,3.06181843,135.37,135.36,0.1]
[1765134744570,10.44897954,135.37,135.36,0.1]
[1765134751400,0.08,135.32,135.31,0.1]
[1765134752102,3.06181843,135.32,135.31,0.1]
[1765134752991,10.45170905,135.32,135.31,0.1]
[1765134753620,8.13989062,135.32,135.31,0.1]
[1765134754117,7.46989062,135.32,135.31,0.1]
[1765134754496,10.45170905,135.32,135.31,0.1]
[1765134755014,9.78170905,135.32,135.31,0.1]
[1765134755216,10.45170905,135.32,135.31,0.1]
[1765134762229,7.46989062,135.32,135.31,0.1]
[1765134763125,8.13989062,135.32,135.31,0.1]
[1765134763506,10.45170905,135.32,135.31,0.1]
[1765134765203,7.46989062,135.32,135.31,0.1]
[1765134766626,0.08,135.32,135.31,0.79]
[1765134768214,0.08,135.32,135.31,3.10181843]
[1765134768421,0.08,135.32,135.31,10.4922552]
[1765134769731,0.08,135.33,135.31,10.4922552]
[1765134769924,0.08,135.33,135.32,3.00181843]
[1765134771036,0.08,135.33,135.32,0.69]
[1765134772541,0.08,135.33,135.32,8.07989062]
[1765134773032,0.08,135.33,135.32,0.69]
[1765134776049,0.08,135.33,135.32,3.00181843]
[1765134776246,0.08,135.33,135.32,0.69]
[1765134779844,0.08,135.33,135.32,8.07989062]
[1765134780359,0.08,135.33,135.32,0.69]
[1765134781251,0.08,135.33,135.32,10.39170905]
[1765134781456,0.08,135.34,135.32,19.20165397]
[1765134781749,0.08,135.34,135.33,3.01181843]
[1765134782556,0.08,135.35,135.33,3.01181843]
[1765134782758,0.08,135.38,135.35,25.11880892]
[1765134782948,0.08,135.39,135.37,2.31181843]
[1765134783150,0.08,135.39,135.37,9.69862502]
[1765134783461,0.08,135.38,135.37,7.38680659]
[1765134783758,0.08,135.38,135.37,18.50856994]
[1765134783968,0.08,135.4,135.37,18.50856994]
[1765134784276,0.08,135.4,135.39,18.62068243]
[1765134784767,0.08,135.4,135.39,3.01181843]
[1765134785440,0.08,135.4,135.39,10.3978883]
[1765134786866,0.08,135.4,135.39,19.20783322]
[1765134787161,0.08,135.43,135.4,8.80994492]
[1765134787465,8.16,135.46,135.4,9.50994492]
[1765134787466,0.08,135.42,135.4,9.50994492]
[1765134787659,0.08,135.42,135.41,9.50994492]
[1765134787863,0.08,135.42,135.41,17.66994492]
[1765134788169,0.08,135.46,135.42,8.80994492]
[1765134788460,0.08,135.46,135.42,9.50994492]
[1765134788663,0.08,135.46,135.44,3.60727362]
[1765134788845,0.08,135.46,135.44,10.99061226]
[1765134789048,0.08,135.46,135.45,0.7]
[1765134789749,0.08,135.46,135.42,19.80151148]
[1765134789957,0.08,135.41,135.4,0.7]
[1765134790787,8.16,135.47,135.38,0.7]
[1765134790788,0.08,135.39,135.38,0.7]
[1765134790946,0.08,135.38,135.37,0.7]
[1765134791459,0.08,135.39,135.37,8.08716111]
[1765134791661,0.08,135.38,135.37,8.08716111]
[1765134791872,0.08,135.38,135.37,7.38716111]
[1765134792465,0.08,135.38,135.37,0.7]
[1765134793150,0.08,135.39,135.37,0.7]
[1765134793350,0.08,135.38,135.37,0.7]
[1765134793851,0.08,135.39,135.37,0.7]
[1765134794171,0.08,135.39,135.37,8.08708332]
[1765134794359,0.08,135.39,135.38,0.7]
[1765134798169,0.08,135.39,135.37,15.54708332]
[1765134798374,0.08,135.39,135.37,16.24708332]
[1765134798688,0.08,135.38,135.37,16.24708332]
[1765134799783,0.08,135.39,135.37,16.24708332]
[1765134800068,0.08,135.38,135.37,16.24708332]
[1765134801280,0.08,135.38,135.37,7.38708332]
[1765134802177,0.08,135.38,135.36,7.38770685]
[1765134802483,0.08,135.38,135.37,0.7]
[1765134803390,0.08,135.39,135.37,8.08711998]
[1765134803589,8.05527432,135.41,135.37,24.39598398]
[1765134803590,0.08,135.38,135.37,24.39598398]
[1765134808201,0.08,135.39,135.37,24.39598398]
[1765134808391,0.08,135.38,135.37,24.39598398]
[1765134809900,0.08,135.39,135.37,24.39598398]
[1765134810201,0.08,135.38,135.37,24.39598398]
[1765134811282,0.08,135.38,135.37,23.69598398]
[1765134812512,0.08,135.38,135.37,24.39598398]
[1765134812688,0.08,135.39,135.37,24.39598398]
[1765134813005,0.08,135.38,135.37,24.39598398]
[1765134817384,0.08,135.38,135.37,28.0032576]
[1765134817579,0.08,135.4,135.37,36.1632576]
[1765134817785,0.08,135.4,135.38,0.7]
[1765134819104,0.08,135.4,135.39,7.38606987]
[1765134820218,0.08,135.4,135.39,0.7]
[1765134820916,0.08,135.42,135.39,12.46727362]
[1765134821107,0.08,135.41,135.4,0.7]
[1765134821903,0.08,135.43,135.4,4.30727362]
[1765134822114,0.08,135.42,135.41,3.60727362]
[1765134822330,0.08,135.42,135.41,4.30727362]
[1765134822696,0.08,135.43,135.41,4.30727362]
[1765134822897,0.08,135.42,135.41,4.30727362]
[1765134824900,0.08,135.43,135.41,11.69225257]
[1765134825626,0.08,135.42,135.41,11.69225257]
[1765134825805,0.08,135.43,135.41,11.69225257]
[1765134826003,0.08,135.42,135.41,11.69225257]
[1765134827820,0.08,135.43,135.41,11.69225257]
[1765134828322,0.08,135.42,135.41,0.7]
[1765134829201,0.08,135.43,135.41,0.7]
[1765134832840,0.08,135.43,135.41,8.08485256]
[1765134835449,0.08,135.42,135.41,8.10485256]
[1765134835750,0.08,135.42,135.39,11.76727362]
[1765134835751,0.08,135.42,135.4,10.99279799]
[1765134836160,0.08,135.42,135.41,0.67]
[1765134838841,0.08,135.43,135.41,0.67]
[1765134839042,0.08,135.42,135.41,0.67]
[1765134839437,0.08,135.42,135.41,8.05497895]
[1765134840541,0.08,135.43,135.41,8.05497895]
[1765134840744,0.08,135.43,135.42,0.67]
[1765134841135,0.08,135.45,135.42,4.27727362]
[1765134841330,0.08,135.45,135.44,7.38334317]
[1765134841534,0.08,135.46,135.44,7.38334317]
[1765134841853,0.08,135.46,135.45,0.67]
[1765134842948,0.08,135.46,135.45,4.27727362]
[1765134843147,0.08,135.47,135.45,4.27727362]
[1765134843339,0.08,135.46,135.45,4.27727362]
[1765134843539,0.08,135.46,135.45,0.67]
[1765134843856,0.08,135.47,135.45,0.67]
[1765134845374,0.08,135.45,135.44,11.66061679]
[1765134845554,0.08,135.45,135.44,10.99061679]
[1765134846063,0.08,135.46,135.44,11.66061679]
[1765134846270,0.08,135.46,135.45,0.67]
[1765134849274,0.08,135.47,135.45,0.67]
[1765134849566,0.08,135.47,135.45,2.97858051]
[1765134849742,8.16,135.49,135.46,2.30858051]
[1765134849743,0.08,135.49,135.46,2.30858051]
[1765134849942,0.2,135.5,135.48,2.30858051]
[1765134850148,0.28,135.5,135.48,2.30858051]
[1765134850340,0.28,135.5,135.48,2.97858051]
[1765134850543,0.2,135.5,135.49,2.97858051]
[1765134850951,0.28,135.5,135.49,10.359199]
[1765134851246,0.2,135.5,135.49,10.359199]
[1765134851446,0.28,135.5,135.49,9.689199]
[1765134851657,0.08,135.48,135.47,16.308864]
[1765134852042,0.08,135.48,135.47,9.69028863]
[1765134852239,0.08,135.48,135.47,7.38170812]
[1765134852863,0.75,135.48,135.47,7.38170812]
[1765134853245,0.08,135.48,135.47,7.38170812]
[1765134854546,0.08,135.47,135.46,7.38225306]
[1765134854749,0.08,135.47,135.46,8.05225306]
[1765134854955,0.08,135.47,135.46,10.36083357]
[1765134860183,0.08,135.49,135.46,10.36083357]
[1765134860359,0.08,135.47,135.46,9.69083357]
[1765134861057,0.08,135.47,135.46,10.40083357]
[1765134861886,0.08,135.49,135.46,10.40083357]
[1765134862085,0.08,135.47,135.46,10.40083357]
[1765134865190,0.08,135.46,135.45,7.38260057]
[1765134865362,0.28,135.5,135.46,8.09173611]
[1765134865690,0.28,135.5,135.47,8.80994492]
[1765134865691,0.08,135.48,135.47,8.80994492]
[1765134865869,0.08,135.48,135.47,9.51994492]
[1765134866885,0.08,135.48,135.47,11.82852543]
[1765134867583,0.2,135.5,135.49,16.308864]
[1765134867584,0.28,135.5,135.49,16.308864]
[1765134867782,0.28,135.5,135.49,18.61744451]
[1765134868077,0.28,135.5,135.49,19.32744451]
[1765134869468,0.28,135.5,135.49,26.708063]
[1765134870194,0.28,135.5,135.49,35.51800792]
[1765134870694,0.2,135.5,135.49,35.51800792]
[1765134877196,0.2,135.5,135.49,23.68948249]
[1765134877894,0.2,135.5,135.49,16.308864]
[1765134878101,0.95,135.5,135.49,16.308864]
[1765134878899,0.08,135.49,135.48,7.38098093]
[1765134879100,0.08,135.49,135.48,8.09098093]
[1765134879881,0.2,135.5,135.48,10.39956144]
[1765134880092,0.2,135.5,135.49,11.82852543]
[1765134881110,0.2,135.5,135.49,19.20914392]
[1765134884709,1e-08,135.5,135.49,18.49914392]
[1765134884908,1e-08,135.5,135.49,36.64573908]
[1765134885084,1e-08,135.5,135.49,24.33056341]
[1765134885485,1e-08,135.5,135.49,25.04056341]
[1765134885704,1e-08,135.5,135.49,24.33056341]
[1765134889195,1e-08,135.5,135.49,26.63914392]
[1765134889413,1e-08,135.5,135.49,27.34914392]
[1765134896827,0.08,135.49,135.47,18.45310527]
[1765134897032,0.08,135.49,135.47,26.59310527]
[1765134897230,0.75,135.49,135.47,45.21054978]
[1765134897412,0.75,135.49,135.48,7.38116327]
[1765134900315,0.75,135.49,135.47,24.448864]
[1765134900716,0.75,135.49,135.47,31.83037939]
[1765134901733,0.75,135.49,135.47,34.1389599]
[1765134901936,1e-08,135.5,135.48,11.79852543]
[1765134902236,0.08000001,135.5,135.49,2.30858051]
[1765134902640,0.08000001,135.5,135.49,9.689199]
[1765134902818,1e-08,135.5,135.49,27.31914392]
[1765134903018,1e-08,135.5,135.49,36.61573908]
[1765134903213,0.67000001,135.5,135.48,17.8296571]
[1765134903418,0.75000001,135.5,135.49,16.308864]
[1765134911145,1e-08,135.5,135.49,27.97480244]
[1765134911314,0.08000001,135.5,135.49,27.97480244]
[1765134911513,1e-08,135.5,135.49,27.97480244]
[1765134912119,1e-08,135.5,135.49,27.29480244]
[1765134913015,1e-08,135.5,135.49,36.78474736]
[1765134915449,1e-08,135.5,135.49,23.68948249]
[1765134915641,1e-08,135.5,135.49,36.78474736]
[1765134917859,1e-08,135.5,135.49,46.08134252]
[1765134918731,0.2,135.52,135.5,8.80994492]
[1765134918962,0.2,135.52,135.51,20.55526487]
[1765134919134,0.2,135.52,135.51,21.23526487]
[1765134919765,1e-08,135.54,135.53,8.80994492]
[1765134920056,1e-08,135.54,135.53,20.55526487]
[1765134920259,1e-08,135.54,135.53,21.23526487]
[1765134920453,1e-08,135.54,135.53,25.11880892]
[1765134920656,1e-08,135.54,135.53,21.22526487]
[1765134920952,1e-08,135.54,135.53,20.55526487]
[1765134921336,1e-08,135.54,135.53,21.22526487]
[1765134921648,1e-08,135.54,135.53,28.60370506]
[1765134921835,1e-08,135.54,135.53,27.93370506]
[1765134923068,1e-08,135.54,135.53,28.60370506]
[1765134923649,1e-08,135.54,135.53,27.93370506]
[1765134924348,1e-08,135.54,135.53,28.60370506]
[1765134931073,1e-08,135.54,135.53,40.63724911]
[1765134931361,0.67000001,135.54,135.53,16.308864]
[1765134931551,0.75000001,135.54,135.53,16.308864]
[1765134931755,0.08000001,135.54,135.53,16.308864]
[1765134932562,0.08000001,135.54,135.53,23.68730419]
[1765134933446,0.08000001,135.54,135.53,16.308864]
[1765134934962,1e-08,135.54,135.53,16.308864]
[1765134935166,0.08000001,135.54,135.53,16.308864]
[1765134935647,0.75000001,135.54,135.53,16.308864]
[1765134936455,0.08,135.52,135.49,16.19047119]
[1765134936641,0.08,135.51,135.49,19.79579114]
[1765134936843,0.08,135.51,135.49,36.77465514]
[1765134937057,0.08,135.51,135.49,10.98584622]
[1765134937258,0.08,135.51,135.5,16.308864]
[1765134938368,0.75,135.52,135.51,16.308864]
[1765134938876,0.08,135.5,135.49,7.38052627]
[1765134939248,0.08,135.5,135.48,36.10513546]
[1765134939644,0.08,135.5,135.49,4.27531995]
[1765134939843,0.08,135.52,135.5,25.11880892]
[1765134940069,0.08,135.52,135.51,3.60531995]
[1765134941372,0.08000001,135.54,135.51,11.65484913]
[1765134941543,0.08,135.53,135.52,3.60531995]
[1765134942841,0.08000001,135.54,135.53,16.308864]
[1765134943072,0.08000001,135.54,135.53,20.58418395]
[1765134943572,0.08000001,135.54,135.53,16.308864]
[1765134944263,0.75000001,135.54,135.53,16.308864]
[1765134944661,0.08000001,135.54,135.53,16.308864]
[1765134946549,0.75000001,135.54,135.53,16.308864]
[1765134946755,8.12789583,135.54,135.53,16.308864]
[1765134947648,8.12789583,135.54,135.5,28.60517512]
[1765134947873,0.08,135.52,135.51,0.67]
[1765134948077,0.08,135.52,135.51,4.27531995]
[1765134949280,0.08,135.52,135.51,3.60531995]
[1765134950054,0.08,135.52,135.5,25.11880892]
[1765134950259,0.08,135.51,135.5,16.308864]
[1765134951583,0.74,135.51,135.5,16.308864]
[1765134952984,8.11952918,135.51,135.5,16.308864]
[1765134953588,0.74,135.51,135.5,16.308864]
[1765134954860,8.11952918,135.51,135.5,16.308864]
[1765134955575,0.08,135.5,135.47,19.79681877]
[1765134955795,0.08,135.49,135.47,28.72412887]
[1765134956600,0.08,135.49,135.47,36.81575627]
[1765134958813,0.74,135.5,135.49,16.308864]
[1765134959303,0.08,135.5,135.49,16.308864]
[1765134960490,0.08,135.5,135.49,17.018864]
[1765134960800,0.08,135.5,135.49,16.308864]
[1765134961492,0.08,135.49,135.46,12.45531995]
[1765134961690,0.08,135.48,135.46,28.05418395]
[1765134961890,0.08,135.47,135.46,36.86412887]
[1765134962092,0.08,135.47,135.46,24.448864]
[1765134962775,0.08,135.46,135.44,16.19322113]
[1765134963181,0.08,135.46,135.44,32.50208513]
[1765134963504,0.08,135.46,135.45,11.69806536]
[1765134963692,0.08,135.46,135.45,19.83806536]
[1765134964799,0.75,135.46,135.44,3.60531995]
[1765134965000,0.75,135.46,135.42,0.71]
[1765134965001,0.08,135.45,135.43,12.45531995]
[1765134965201,0.08,135.47,135.43,28.76418395]
[1765134965385,0.08,135.45,135.43,28.76418395]
[1765134965582,0.08,135.45,135.44,4.31531995]
[1765134966808,0.08,135.45,135.44,11.69866312]
[1765134969887,0.08,135.47,135.44,20.50860804]
[1765134970096,0.08,135.48,135.47,16.308864]
[1765134970297,0.08,135.48,135.47,19.91418395]
[1765134970501,0.08,135.48,135.47,16.308864]
[1765134971116,0.08,135.48,135.47,18.61678307]
[1765134971323,0.08,135.48,135.47,19.32678307]
[1765134972522,0.08,135.49,135.47,19.32678307]
[1765134972695,0.08,135.49,135.48,3.01791907]
[1765134973200,0.08,135.49,135.47,31.83057212]
[1765134973404,0.08,135.49,135.48,3.01791907]
[1765134973726,0.08,135.5,135.48,3.01791907]
[1765134973899,0.08,135.5,135.49,2.30791907]
[1765134974906,0.08,135.5,135.48,10.39883497]
[1765134975626,0.08,135.48,135.47,34.1384372]
[1765134975834,0.08,135.48,135.47,16.308864]
[1765134976014,0.75,135.48,135.47,16.308864]
[1765134976200,0.08,135.47,135.46,16.308864]
[1765134976614,0.75,135.47,135.46,16.308864]
[1765134978525,0.08,135.47,135.46,16.308864]
[1765134981043,0.08,135.47,135.46,16.978864]
[1765134981532,0.08,135.47,135.46,16.308864]
[1765134983216,0.74,135.47,135.46,16.308864]
[1765134984134,0.08,135.47,135.46,16.308864]
[1765134984337,0.08,135.45,135.43,26.75678307]
[1765134984514,0.08,135.44,135.42,18.50212399]
[1765134984714,0.08,135.43,135.42,18.50212399]
[1765134985172,0.08,135.43,135.41,10.44791907]
[1765134985471,0.08,135.43,135.41,24.448864]
[1765134985770,0.08,135.42,135.41,18.61678307]
[1765134986076,0.08,135.45,135.42,8.80994492]
[1765134986369,0.08,135.45,135.44,18.61678307]
[1765134986873,0.08,135.45,135.44,19.28678307]
[1765134987778,0.08,135.48,135.45,8.80994492]
[1765134988059,0.08,135.48,135.46,8.14]
[1765134988251,0.08,135.47,135.46,8.81]
[1765134989185,0.08,135.47,135.46,11.11791907]
[1765134991074,0.08,135.48,135.46,11.11791907]
[1765134991401,0.08,135.47,135.46,11.11791907]
[1765134993502,0.08,135.47,135.46,18.50017213]
[1765134993688,0.08,135.47,135.46,27.31011705]
[1765134994597,0.08,135.49,135.48,16.308864]
[1765134994895,0.08,135.49,135.48,35.56672799]
[1765134995196,0.08,135.49,135.48,36.23672799]
[1765134995781,0.08,135.49,135.48,35.56672799]
[1765134995984,0.08,135.49,135.48,36.23672799]
[1765134997086,0.08,135.49,135.48,43.61789126]
[1765134997986,0.08,135.51,135.48,43.61789126]
[1765134998195,0.08,135.49,135.48,40.63997219]
[1765134999204,0.08,135.49,135.48,41.30997219]
[1765134999498,0.08,135.49,135.48,43.61789126]
[1765134999711,0.08,135.49,135.48,26.75678307]
[1765134999914,0.74,135.49,135.48,16.308864]
[1765135000089,0.08,135.46,135.45,2.30791907]
[1765135000574,0.08,135.46,135.45,2.97791907]
[1765135001709,0.08,135.46,135.45,2.30791907]
[1765135005611,0.08,135.46,135.45,9.69071715]
[1765135005914,0.08,135.46,135.45,10.36071715]
[1765135007807,0.08,135.46,135.45,9.69071715]
[1765135007999,0.08,135.46,135.45,2.30791907]
[1765135010615,0.08,135.46,135.45,10.36071715]
[1765135011702,0.08,135.48,135.46,8.80994492]
[1765135011899,0.08,135.48,135.47,35.56672799]
[1765135012102,0.08,135.48,135.47,36.23672799]
[1765135014413,0.08,135.48,135.47,16.308864]
[1765135014616,0.08,135.47,135.46,11.11786399]
[1765135015605,0.08,135.47,135.46,18.49972465]
[1765135015799,0.08,135.47,135.46,19.16972465]
[1765135016821,0.08,135.47,135.46,27.30972465]
[1765135019102,0.08,135.46,135.45,18.61678307]
[1765135019323,0.08,135.46,135.45,19.31678307]
[1765135020827,0.08,135.46,135.45,18.61678307]
[1765135021932,0.08,135.46,135.45,16.308864]
[1765135022111,0.08,135.46,135.45,18.61678307]
[1765135024825,0.08,135.47,135.46,8.80994492]
[1765135025130,0.08,135.47,135.46,11.81786399]
[1765135025426,0.08,135.48,135.47,16.19165304]
[1765135025628,0.08,135.48,135.47,26.63957211]
[1765135026127,0.08,135.48,135.47,27.33957211]
[1765135030719,0.08,135.48,135.47,28.63676908]
[1765135033139,0.08,135.51,135.49,16.308864]
[1765135033446,0.08,135.51,135.5,3.60511604]
[1765135033927,0.08,135.48,135.47,29.42392496]
[1765135034740,0.08,135.48,135.47,36.80553859]
[1765135038434,0.08,135.48,135.47,36.10553859]
[1765135039522,0.08,135.49,135.47,36.10553859]
[1765135039724,0.08,135.48,135.47,36.80553859]
[1765135040644,0.08,135.49,135.47,36.80553859]
[1765135040830,0.08,135.48,135.47,36.80553859]
[1765135042924,0.08,135.48,135.47,36.10553859]
[1765135043622,0.08,135.48,135.47,36.82553859]
[1765135048048,0.08,135.48,135.47,36.10553859]
[1765135048850,0.08,135.48,135.47,36.82553859]
[1765135049440,0.08,135.52,135.48,8.80994492]
[1765135049651,0.08,135.51,135.5,3.60511604]
[1765135049827,0.08,135.5,135.49,12.41506096]
[1765135050148,0.08,135.5,135.49,13.13506096]
[1765135051348,0.08,135.5,135.49,20.51567945]
[1765135052673,0.08,135.51,135.49,20.51567945]
[1765135052827,0.08,135.5,135.49,16.19056341]
[1765135053328,0.08,135.5,135.49,16.91056341]
[1765135053952,0.08,135.5,135.49,20.51567945]
[1765135054644,0.08,135.51,135.49,20.51567945]
[1765135054954,0.08,135.51,135.5,3.60511604]
[1765135059327,0.08,135.5,135.49,19.79567945]
[1765135059629,0.08,135.5,135.49,20.51567945]
[1765135059957,0.08,135.5,135.49,19.79567945]
[1765135060537,0.08,135.5,135.49,20.51567945]
[1765135061556,0.08,135.5,135.49,19.79567945]
[1765135063449,0.08,135.5,135.49,16.19056341]
[1765135063647,0.08,135.5,135.49,16.91056341]
[1765135069035,0.08,135.52,135.49,16.91056341]
[1765135069239,0.08,135.5,135.49,16.19056341]
[1765135069841,0.08,135.5,135.49,16.91056341]
[1765135070568,0.08,135.5,135.49,9.52994492]
[1765135070749,0.08,135.5,135.49,17.66994492]
[1765135070943,0.08,135.5,135.49,16.94994492]
[1765135071563,0.08,135.49,135.48,24.33092829]
[1765135072071,0.08,135.5,135.48,25.04092829]
[1765135072768,0.08,135.49,135.48,25.04092829]
[1765135074663,0.08,135.51,135.48,25.04092829]
[1765135074968,0.08,135.49,135.48,24.33092829]
[1765135075370,0.08,135.49,135.48,25.04092829]
[1765135077373,0.08,135.5,135.48,25.04092829]
[1765135077750,0.08,135.49,135.48,25.04092829]
[1765135078874,0.08,135.49,135.48,24.33092829]
[1765135079174,0.08,135.49,135.48,24.99092829]
[1765135080671,0.08,135.5,135.48,24.99092829]
[1765135081650,0.08,135.49,135.48,24.99092829]
[1765135081965,0.08,135.5,135.48,24.99092829]
[1765135084060,0.08,135.49,135.48,24.99092829]
[1765135084475,0.08,135.47,135.46,31.06948971]
[1765135084670,0.08,135.47,135.46,25.11880892]